Workbook

Sheet Zentrales Hauptsiedlungsgebiet
A1: Zentrales Hauptsiedlungsgebiet
A2: Bauvorhaben: | C2: Adresse: | E2: Geschäftszahl:
C4: Stellplatzschlüssel (Stand 2018-02-01) | E4: Eingabedaten für Berechnung | G4: Erforderliche Anzahl an Stellplätzen
E5: Kennwert | F5: Anzahl
A6: 1. | B6: Gebäude mit Wohnnutzung
A7: 1.1. | B7: Neu, Zu-, oder Umbau von bis zu 6 WE
A8: 1.1.1. | B8: WE bis 60m² WNFL | C8: 0,60 Stpl. / WE1) | D8: 0.6 | E8: WE | G8: =IF(F8="","",IF(SUM($F$8:$F$11)>6,"",F8*D8)) ->  | I8: =IF(SUM(F8:F11)>6,"ACHTUNG:" & CHAR(10) & "Es wurden mehr als 6 WE eingegeben!" & CHAR(10) & "Eingabe bei Pkt. 1.2","") -> 
A9: 1.1.2. | B9: WE über 60 bis 80m² WNFL | C9: 0,80 Stpl. / WE1) | D9: 0.8 | E9: WE | G9: =IF(F9="","",IF(SUM($F$8:$F$11)>6,"",F9*D9)) -> 
A10: 1.1.3. | B10: WE über 80 bis 110m² WNFL | C10: 0,90 Stpl. / WE1) | D10: 0.9 | E10: WE | G10: =IF(F10="","",IF(SUM($F$8:$F$11)>6,"",F10*D10)) -> 
A11: 1.1.4. | B11: WE über 110m² WNFL | C11: 1,00 Stpl. / WE1) | D11: 1 | E11: WE | G11: =IF(F11="","",IF(SUM($F$8:$F$11)>6,"",F11*D11)) -> 
A12: 1.2. | B12: Wohnanlagen (Neu, Zu-, oder Umbau von mehr als 6 WE)
A13: 1.2.1. | B13: WE bis 60m² WNFL | C13: 85% von 0,60 Stpl. / WE1) | D13: =0.6*0.85 -> 0.51 | E13: WE | G13: =IF(F13="","",IF(SUM($F$13:$F$16)>6,F13*D13,"")) ->  | I13: =IF(AND(F13="",F14="",F15="",F16=""),"",IF(SUM(F13:F16)>6,"","ACHTUNG:" & CHAR(10) & "Kontrollieren Sie bitte ob es sich um eine Wohnanlage handelt!" & CHAR(10) & "Eingabe bei Pkt. 1.1")) -> 
A14: 1.2.2. | B14: WE über 60 bis 80m² WNFL | C14: 85% von 0,80 Stpl. / WE1) | D14: =0.8*0.85 -> 0.68 | E14: WE | G14: =IF(F14="","",IF(SUM($F$13:$F$16)>6,F14*D14,"")) -> 
A15: 1.2.3. | B15: WE über 80 bis 110m² WNFL | C15: 85% von 0,90 Stpl. / WE1) | D15: =0.9*0.85 -> 0.765 | E15: WE | G15: =IF(F15="","",IF(SUM($F$13:$F$16)>6,F15*D15,"")) -> 
A16: 1.2.4. | B16: WE über 110m² WNFL | C16: 85% von 1,00 Stpl. / WE1) | D16: =1*0.85 -> 0.85 | E16: WE | G16: =IF(F16="","",IF(SUM($F$13:$F$16)>6,F16*D16,"")) -> 
A17: 1.3. | B17: Betreutes Wohnen für SeniorInnen
A18: 1.3.1. | B18: bis (incl.) 5 WE
A19: 1.3.1.1. | B19: WE bis 60m² WNFL | C19: 75% von 0,60 Stpl. / WE1) | D19: =0.6*0.75 -> 0.45 | E19: WE | G19: =IF(F19="","",IF(SUM($F$19:$F$22)>5,"",F19*D19)) ->  | I19: =IF(SUM(F19:F22)>5,"ACHTUNG:" & CHAR(10) & "Es wurden mehr als 5 WE eingegeben!" & CHAR(10) & "Eingabe bei Pkt. 1.3.2","") -> 
A20: 1.3.1.2. | B20: WE über 60 bis 80m² WNFL | C20: 75% von 0,80 Stpl. / WE1) | D20: =0.8*0.75 -> 0.6 | E20: WE | G20: =IF(F20="","",IF(SUM($F$19:$F$22)>5,"",F20*D20)) -> 
A21: 1.3.1.3. | B21: WE über 80 bis 110m² WNFL | C21: 75% von 0,90 Stpl. / WE1) | D21: =0.9*0.75 -> 0.675 | E21: WE
A22: 1.3.1.4. | B22: WE über 110m² WNFL | C22: 75% von 1,00 Stpl. / WE1) | D22: =1*0.75 -> 0.75 | E22: WE
A23: 1.3.2. | B23: mehr als 5 WE
A24: 1.3.2.1. | B24: WE bis 60m² WNFL | C24: 65% von 0,60 Stpl. / WE1) | D24: =0.6*0.65 -> 0.39 | E24: WE | G24: =IF(F24="","",IF(SUM($F$24:$F$29)>5,F24*D24,"")) ->  | I24: =IF(AND(F24="",F25="",F26="",F27=""),"",IF(SUM(F24:F27)>5,"","ACHTUNG:" & CHAR(10) & "Kontrollieren Sie bitte ob es sich um eine Wohnanlage handelt!" & CHAR(10) & "Eingabe bei Pkt. 1.3.1")) -> 
A25: 1.3.2.2. | B25: WE über 60 bis 80m² WNFL | C25: 65% von 0,80 Stpl. / WE1) | D25: =0.8*0.65 -> 0.52 | E25: WE | G25: =IF(F25="","",IF(SUM($F$24:$F$29)>5,F25*D25,"")) -> 
A26: 1.3.2.3. | B26: WE über 80 bis 110m² WNFL | C26: 65% von 0,90 Stpl. / WE1) | D26: =0.9*0.65 -> 0.585 | E26: WE
A27: 1.3.2.4. | B27: WE über 110m² WNFL | C27: 65% von 1,00 Stpl. / WE1) | D27: =1*0.65 -> 0.65 | E27: WE
A28: 1.4. | B28: Heime für Kinder und Jugendliche bis 18 Jahren | C28: 1 Stpl. / 30 Betten (mind. 1 Stpl.) | D28: =1/30 -> 0.03333333333 | E28: Betten | G28: =IF(F28="","",IF(F28*D28<1,1,F28*D28)) ->  | I28: Summe Wohngebäude gerundet
A29: 1.5. | B29: Heime für in Ausbildung befindliche oder berufstätige Personen über 18 Jahre | C29: 1 Stpl / 4 Betten (mind. 1 Stpl.) | D29: =1/4 -> 0.25 | E29: Betten | G29: =IF(F29="","",IF(F29*D29<1,1,F29*D29)) ->  | I29: =ROUND(SUM(G8:G11,G13:G16,G19:G22,G24:G29),0) -> 0
A30: 2. | B30: Büro- Verwaltungs- und Praxisräume
A31: 2.1. | B31: öffentliche Einrichtungen (Ämter-, Arztpraxen, Schalterhallen o.ä.) und sonstige Büro- und Verwaltungsräume | C31: 1 Stpl. / 80m² Nutzfläche (mind. 1 Stpl.) | D31: =1/80 -> 0.0125 | E31: NF [m2] | G31: =IF(F31="","",IF(F31*D31<1,1,F31*D31)) -> 
A32: 3. | B32: Verkaufsstätten
A33: 3.1. | B33: Läden und Geschäfte (bis 300m²) | C33: 1 Stpl. / 40m² KF (mind. 2 Stpl.) | D33: =1/40 -> 0.025 | E33: KF [m2] | G33: =IF(F33="","",IF(F33*D33<2,2,F33*D33)) -> 
A34: 3.2. | B34: Super- und Verbrauchermärkte (>300m²) sowie Einkaufszentren Betriebstyp A | C34: 1 Stpl. / 35m² KF (mind. 2 Stpl.) | D34: =1/35 -> 0.02857142857 | E34: KF [m2] | G34: =IF(F34="","",IF(F34*D34<2,2,F34*D34)) -> 
A35: 3.3. | B35: Einkaufszentren Betriebstyp B (früher IV bis V) | C35: 1 Stpl. / 20m² KF (mind. 2 Stpl.) | D35: =1/20 -> 0.05 | E35: KF [m2] | G35: =IF(F35="","",IF(F35*D35<2,2,F35*D35)) -> 
A36: 3.4. | B36: Ausstellungs- und Verkaufsflächen für große, flächenbeanspruchene Güter, sofern keine EKZ | C36: 1 Stpl. / 200m² AF bzw. KF | D36: =1/200 -> 0.005 | E36: AF bzw. KF [m2] | G36: =IF(F36="","",F36*D36) -> 
A37: 4. | B37: Gaststätten und Beherbergungsbetriebe
A38: 4.1. | B38: Gaststätten, Restaurants, Cafes, Bars | C38: 1 Stpl. / 12 Sitzplätze (mind. 1 Stpl.) | D38: =1/12 -> 0.08333333333 | E38: Sitzplätze | G38: =IF(F38="","",IF(F38*D38<1,1,F38*D38)) -> 
A39: 4.2. | B39: Hotels, Pensionen, Beherbergungsbetriebe | C39: 1 Stpl. / 7 Betten (mind. 1 Stpl.) | D39: =1/7 -> 0.1428571429 | E39: Betten | G39: =IF(F39="","",IF(F39*D39<1,1,F39*D39)) -> 
A40: 4.3. | B40: Jugendherbergen | C40: 1 Stpl. / 15 Betten (mind. 1 Stpl.) | D40: =1/15 -> 0.06666666667 | E40: Betten | G40: =IF(F40="","",IF(F40*D40<1,1,F40*D40)) -> 
A41: 5. | B41: Sonstige gewerbliche Nutzung
A42: 5.1. | B42: Erzeugungs- und Dienstleistungsbetriebe | C42: 1 Stpl. / 300m² NF + 1 Stpl. / 4 AP (mind. 1 Stpl.) | D42: =1/300 -> 0.003333333333 | E42: NF [m2] | G42: =IF(F42="","",IF(F43="","",IF(F42*D42+F43*D43<1,1,F42*D42+F43*D43))) -> 
D43: =1/4 -> 0.25 | E43: AP
A44: 5.2. | B44: Lagergebäude und -flächen | C44: 1 Stpl. / 80m² LF | D44: 0.0125 | E44: LF [m2]: | G44: =IF($F$44="","",$F$44*$D$44) -> 
A45: 5.2. | B45: Lagergebäude und -flächen | C45: 1 Stpl. / 300m² LF | D45: =1/300 -> 0.003333333333 | E45: LF [m2] | G45: =IF(F45="","",F45*D45) -> 
A46: 5.3. | B46: Waschanlagen | C46: 2 Stpl. / Waschanlage | D46: 2 | E46: Waschanlagen | G46: =IF(F46="","",F46*D46) -> 
A47: 6. | B47: Versammlungsstätten
A48: 6.1. | B48: Theater, Konzert-, Kongresshäuser; (Groß)Kino's mit überörtlicher Bedeutung | C48: 1 Stpl. / 15 BP | D48: =1/15 -> 0.06666666667 | E48: BP | G48: =IF(F48="","",F48*D48) -> 
A49: 6.2. | B49: Sonstige Versammlungsstätten, Kino's, Vortragssäle, religiöse Versammlungsstätten | C49: 1 Stpl. / 20 BP | D49: =1/20 -> 0.05 | E49: BP | G49: =IF($F$49="","",$F$49*$D$49) -> 
A50: 7. | B50: Ausbildungsstätten, Schulen und Kindergärten
A51: 7.1. | B51: Kindergärten | C51: 1 Stpl. / 5 Gruppenräume | D51: =1/5 -> 0.2 | E51: Gruppenräume | G51: =IF(F51="","",F51*D51) -> 
A52: 7.2. | B52: Volks-, Haupt- und Mittelschulen, generell Ausbildungsstätten für Personen unter 18 Jahren | C52: 1 Stpl. / 4 Klassen | D52: =1/4 -> 0.25 | E52: Klassen | G52: =IF(F52="","",F52*D52) -> 
A53: 7.3. | B53: generell Ausbildungsstätten für Personen über 18 Jahren (sonstige Einrichtungen wie Büros, Mensen, Cafe's etc. sind nicht pauschal enthalten) | C53: 1 Stpl. / 20 Auszubildende (Sitzplätze, Hörerplätze) (mind. 1 Stpl.) | D53: 0.05 | E53: Auszubildende | G53: =IF(F53="","",IF(F53*D53<1,1,F53*D53)) -> 
A54: 8. | B54: Krankenanstalten
A55: 8.1. | B55: (Alten-)Wohnheime (pflegeartige Betreuung, gemeinsame Einrichtungen) | C55: 1 Stpl. / 15 Betten | D55: =1/15 -> 0.06666666667 | E55: Betten | G55: =IF(F55="","",F55*D55) -> 
A56: 9. | B56: Verschiedenes
A57: 10.1. | B57: Kleingartenanlagen | C57: 1 Stpl. / 2 Kleingärten | D57: 0.5 | E57: Kleingärten: | G57: =IF($F$57="","",$F$57*$D$57) -> 
A58: 9.1. | B58: Fitnesscenter | C58: 1 Stpl. / 3 Kleiderablagen | D58: =1/3 -> 0.3333333333 | E58: Kleiderablagen | G58: =IF(F58="","",F58*D58) ->  | I58: Summe Nichtwohngebäude gerundet
A59: 9.2. | B59: Kleingartenanlagen | C59: 12 Stpol. / 6 Kleingärten | D59: =1/6 -> 0.1666666667 | E59: Kleingärten | G59: =IF(F59="","",F59*D59) ->  | I59: =ROUND(SUM(G31,G33:G36,G38:G40,G42:G46,G48:G49,G51:G53,G55,G58:G59),0) -> 0
A60: Die Gesamtanzahl der erforderlichen Stellplätze beträgt: | G60: =SUM($G$6:$G$59) -> 0
A61: Barrierefreiestellplätze gem. §9 TBO (angemessene Anzahl gem. ÖNORM B 1600)* | G61: =IF(G60=SUM(G8:G11),0,IF((G60-SUM(G8:G11))>=5,ROUNDUP((G60-SUM(G8:G11))/20,0),0)) -> 0 | I61: =IF(F48="","","ACHTUNG:" & CHAR(10) & "separate Regeln für Veranstaltungsstätten") -> 
A62: Fläche für einspurige Kraftfahrzeuge gem. §12 TBO für Wohnanlagen in m² (angemessene Größe gemäß Statistik Kfz Bestand)** | G62: =IF(SUM(G13:G16)*0.16*1.5=0,0,MAX(SUM(G13:G16)*0.16*1.5,1.5)) -> 0
A63: Technische Bauvorschriften 9. Abschnitt Elektromobilität | C63: Ladepunkte | G63: =IF(I59>10,1,0) -> 0 | I63: TBV §37b Abs (5) Bei Nichtwohngebäude, bei denen die Anzahl der nachzuweisenden Abstellmöglichkeiten mehr als zwanzig beträgt, ist bis zum 1. Jänner 2025 mindestens ein Ladepunkt für Elektrofahrzeuge zu errichten. (Die Nachrüstung eines Ladepunktes ist erforderlich)
C64: Anzahl der Stellplätze mit Leitungsinfrastruktur | G64: =IF(I29>10,I29,0)+IF(I59>10,ROUNDUP(I59/5,0),0) -> 0
C66: 1) davon 5% Besucher
A67: Der ermittelte Stellplatzbedarf ist nach mathematischen Regeln zu runden!
A68: Legende:
A69: AF | B69: …Ausstellungsfläche | C69: *Barrierefreie Stellplätze Anforderung für Wohnanlagen und Gebäude die regelmäßig auch von Menschen mit einer Behinderung aufgesucht werden
A70: AP | B70: …Arbeitsplätze
A71: BF | B71: …Betriebsfläche
A72: BP | B72: …Besucherplatz | C72: **Berechnung Flächen einspurige Kfz: Statistik Austria Kfz Bestand 2019 Innsbruck Stadt Anteil einspuriger Fahrzeuge = 16% bezogen auf Pkws vorgeschriebene Anzahl Pkw Stellplätze *16% *1,5m²
A73: FBF | B73: …Freibadfläche
A74: FHF | B74: …Friedhofsfläche
A75: GF | B75: …Gastraumfläche
A76: GSP | B76: …Gesamtsitzplatzanzahl
A77: HF | B77: …Hallenfläche
A78: KF | B78: …Kundenfläche nach §8 (2) TROG 16
A79: LF | B79: …Lagerfläche im Gebäude
A80: NF | B80: …Nutzfläche nach ÖNORM B 1800
A81: SF | B81: …Sportfläche
A82: SP | B82: …Sitzplätze
A83: VF | B83: …Verkaufsfläche
A84: WE | B84: …Wohneinheit bzw. Wohnung
A85: WNF | B85: …Wohnnutzfläche je WE gemäß Stellplatzhöchstzahlenverordnung
A87: Auf eine nähere Definition der letzteren Begriffe wurde wegen ihrer Komplexität bewusst verzichtet. Im Zweifelsfall kontaktieren Sie das Referat Verkehrs- und Umweltmanagement.

Sheet Hauptsiedlungsgebiet
A1: Hauptsiedlungsgebiet
A2: Bauvorhaben: | C2: Adresse: | E2: Geschäftszahl:
C4: Stellplatzschlüssel (Stand 2018-02-01) | E4: Eingabedaten für Berechnung | G4: Erforderliche Anzahl an Stellplätzen
E5: Kennwert | F5: Anzahl
A6: 1. | B6: Gebäude mit Wohnnutzung
A7: 1.1. | B7: Neu, Zu-, oder Umbau von bis zu 6 WE
A8: 1.1.1. | B8: WE bis 60m² WNFL | C8: 0,90 Stpl. / WE2) | D8: 0.9 | E8: WE | G8: =IF(F8="","",IF(SUM($F$8:$F$11)>6,"",F8*D8)) ->  | I8: =IF(SUM(F8:F11)>6,"ACHTUNG:" & CHAR(10) & "Es wurden mehr als 6 WE eingegeben!" & CHAR(10) & "Eingabe bei Pkt. 1.2","") -> 
A9: 1.1.2. | B9: WE über 60 bis 80m² WNFL | C9: 1,20 Stpl. / WE2) | D9: 1.2 | E9: WE | G9: =IF(F9="","",IF(SUM($F$8:$F$11)>6,"",F9*D9)) -> 
A10: 1.1.3. | B10: WE über 80 bis 110m² WNFL | C10: 1,40 Stpl. / WE2) | D10: 1.4 | E10: WE | G10: =IF(F10="","",IF(SUM($F$8:$F$11)>6,"",F10*D10)) -> 
A11: 1.1.4. | B11: WE über 110m² WNFL | C11: 1,50 Stpl. / WE2) | D11: 1.5 | E11: WE | G11: =IF(F11="","",IF(SUM($F$8:$F$11)>6,"",F11*D11)) -> 
A12: 1.2. | B12: Wohnanlagen (Neu, Zu-, oder Umbau von mehr als 6 WE)
A13: 1.2.1. | B13: WE bis 60m² WNFL | C13: 85% von 0,90 Stpl. / WE2) | D13: =0.9 * 0.85 -> 0.765 | E13: WE | G13: =IF(F13="","",IF(SUM($F$13:$F$16)>6,F13*D13,"")) ->  | I13: =IF(AND(F13="",F14="",F15="",F16=""),"",IF(SUM(F13:F16)>6,"","ACHTUNG:" & CHAR(10) & "Kontrollieren Sie bitte ob es sich um eine Wohnanlage handelt!" & CHAR(10) & "Eingabe bei Pkt. 1.1")) -> 
A14: 1.2.2. | B14: WE über 60 bis 80m² WNFL | C14: 85% von 1,20 Stpl. / WE2) | D14: =1.2 * 0.85 -> 1.02 | E14: WE | G14: =IF(F14="","",IF(SUM($F$13:$F$16)>6,F14*D14,"")) -> 
A15: 1.2.3. | B15: WE über 80 bis 110m² WNFL | C15: 85% von 1,40 Stpl. / WE2) | D15: =1.4 * 0.85 -> 1.19 | E15: WE | G15: =IF(F15="","",IF(SUM($F$13:$F$16)>6,F15*D15,"")) -> 
A16: 1.2.4. | B16: WE über 110m² WNFL | C16: 85% von 1,50 Stpl. / WE2) | D16: =1.5 * 0.85 -> 1.275 | E16: WE | G16: =IF(F16="","",IF(SUM($F$13:$F$16)>6,F16*D16,"")) -> 
A17: 1.3. | B17: Betreutes Wohnen für SeniorInnen
A18: 1.3.1. | B18: bis (incl.) 5 WE
A19: 1.3.1.1. | B19: WE bis 60m² WNFL | C19: 75% von 0,90 Stpl. / WE2) | D19: =0.9*0.75 -> 0.675 | E19: WE | G19: =IF(F19="","",IF(SUM($F$19:$F$22)>5,"",F19*D19)) ->  | I19: =IF(SUM(F19:F22)>5,"ACHTUNG:" & CHAR(10) & "Es wurden mehr als 5 WE eingegeben!" & CHAR(10) & "Eingabe bei Pkt. 1.3.2","") -> 
A20: 1.3.1.2. | B20: WE über 60 bis 80m² WNFL | C20: 75% von 1,20 Stpl. / WE2) | D20: =1.2 * 0.75 -> 0.9 | E20: WE | G20: =IF(F20="","",IF(SUM($F$19:$F$22)>5,"",F20*D20)) -> 
A21: 1.3.1.3. | B21: WE über 80 bis 110m² WNFL | C21: 75% von 1,40 Stpl. / WE2) | D21: =1.4 * 0.75 -> 1.05 | E21: WE
A22: 1.3.1.4. | B22: WE über 110m² WNFL | C22: 75% von 1,50 Stpl. / WE2) | D22: =1.5*0.75 -> 1.125 | E22: WE
A23: 1.3.2. | B23: mehr als 5 WE
A24: 1.3.2.1. | B24: WE bis 60m² WNFL | C24: 65% von 0,90 Stpl. / WE2) | D24: =0.9 * 0.65 -> 0.585 | E24: WE | G24: =IF(F24="","",IF(SUM($F$24:$F$29)>5,F24*D24,"")) ->  | I24: =IF(AND(F24="",F25="",F26="",F27=""),"",IF(SUM(F24:F27)>5,"","ACHTUNG:" & CHAR(10) & "Kontrollieren Sie bitte ob es sich um eine Wohnanlage handelt!" & CHAR(10) & "Eingabe bei Pkt. 1.3.1")) -> 
A25: 1.3.2.2. | B25: WE über 60 bis 80m² WNFL | C25: 65% von 1,20 Stpl. / WE2) | D25: =1.2*0.65 -> 0.78 | E25: WE | G25: =IF(F25="","",IF(SUM($F$24:$F$29)>5,F25*D25,"")) -> 
A26: 1.3.2.3. | B26: WE über 80 bis 110m² WNFL | C26: 65% von 1,40 Stpl. / WE2) | D26: =1.4*0.65 -> 0.91 | E26: WE
A27: 1.3.2.4. | B27: WE über 110m² WNFL | C27: 65% von 1,50 Stpl. / WE2) | D27: =1.5*0.65 -> 0.975 | E27: WE
A28: 1.4. | B28: Heime für Kinder und Jugendliche bis 18 Jahren | C28: 1 Stpl. / 20 Betten (mind. 2 Stpl.) | D28: =1/20 -> 0.05 | E28: Betten | G28: =IF(F28="","",IF(F28*D28<2,2,F28*D28)) ->  | I28: Summe Wohngebäude gerundet
A29: 1.5. | B29: Heime für in Ausbildung befindliche oder berufstätige Personen über 18 Jahre | C29: 1 Stpl / 3 Betten (mind. 2 Stpl.) | D29: =1/3 -> 0.3333333333 | E29: Betten | G29: =IF(F29="","",IF(F29*D29<2,2,F29*D29)) ->  | I29: =ROUND(SUM(G8:G11,G13:G16,G19:G22,G24:G29),0) -> 0
A30: 2. | B30: Büro- Verwaltungs- und Praxisräume
A31: 2.1. | B31: öffentliche Einrichtungen (Ämter-, Arztpraxen, Schalterhallen o.ä.) und sonstige Büro- und Verwaltungsräume | C31: 1 Stpl. / 60m² NF (mind. 2 Stpl.) | D31: =1/60 -> 0.01666666667 | E31: NF [m2] | G31: =IF(F31="","",IF(F31*D31<2,2,F31*D31)) -> 
A32: 3. | B32: Verkaufsstätten
A33: 3.1. | B33: Läden und Geschäfte (bis 300m²) | C33: 1 Stpl. / 30m² KF (mind. 2 Stpl.) | D33: =1/30 -> 0.03333333333 | E33: KF [m2] | G33: =IF(F33="","",IF(F33*D33<2,2,F33*D33)) -> 
A34: 3.2. | B34: Super- und Verbrauchermärkte (>300m²) sowie Einkaufszentren Betriebstyp A | C34: 1 Stpl. / 25m² KF (mind. 2 Stpl.) | D34: =1/25 -> 0.04 | E34: KF [m2] | G34: =IF(F34="","",IF(F34*D34<2,2,F34*D34)) -> 
A35: 3.3. | B35: Einkaufszentren Betriebstyp B (früher IV bis V) | C35: 1 Stpl. / 15m² KF (mind. 2 Stpl.) | D35: =1/15 -> 0.06666666667 | E35: KF [m2] | G35: =IF(F35="","",IF(F35*D35<2,2,F35*D35)) -> 
A36: 3.4. | B36: Ausstellungs- und Verkaufsflächen für große, flächenbeanspruchene Güter, sofern keine EKZ | C36: 1 Stpl. / 100m² AF bzw. KF | D36: =1/100 -> 0.01 | E36: AF bzw. KF [m2] | G36: =IF(F36="","",F36*D36) -> 
A37: 4. | B37: Gaststätten und Beherbergungsbetriebe
A38: 4.1. | B38: Gaststätten, Restaurants, Cafes, Bars | C38: 1 Stpl. / 10 Sitzplätze (mind. 2 Stpl.) | D38: =1/10 -> 0.1 | E38: Sitzplätze | G38: =IF(F38="","",IF(F38*D38<2,2,F38*D38)) -> 
A39: 4.2. | B39: Hotels, Pensionen, Beherbergungsbetriebe | C39: 1 Stpl. / 4 Betten (mind. 2 Stpl.) | D39: =1/4 -> 0.25 | E39: Betten | G39: =IF(F39="","",IF(F39*D39<2,2,F39*D39)) -> 
A40: 4.3. | B40: Jugendherbergen | C40: 1 Stpl. / 13 Betten (mind. 2 Stpl.) | D40: =1/13 -> 0.07692307692 | E40: Betten | G40: =IF(F40="","",IF(F40*D40<2,2,F40*D40)) -> 
A41: 5. | B41: Sonstige gewerbliche Nutzung
A42: 5.1. | B42: Erzeugungs- und Dienstleistungsbetriebe | C42: 1 Stpl. / 200m² NF + 1 Stpl. / 3 AP (mind. 2 Stpl.) | D42: =1/200 -> 0.005 | E42: NF [m2] | G42: =IF(F42="","",IF(F43="","",IF(F42*D42+F43*D43<2,2,F42*D42+F43*D43))) -> 
D43: =1/3 -> 0.3333333333 | E43: AP
A44: 5.2. | B44: Lagergebäude und -flächen | C44: 1 Stpl. / 80m² LF | D44: 0.0125 | E44: LF [m2]: | G44: =IF($F$44="","",$F$44*$D$44) -> 
A45: 5.2. | B45: Lagergebäude und -flächen | C45: 1 Stpl. / 200m² LF | D45: =1/200 -> 0.005 | E45: LF [m2] | G45: =IF(F45="","",F45*D45) -> 
A46: 5.3. | B46: Waschanlagen | C46: 2 Stpl. / Waschanlage | D46: 2 | E46: Waschanlagen | G46: =IF(F46="","",F46*D46) -> 
A47: 6. | B47: Versammlungsstätten
A48: 6.1. | B48: Theater, Konzert-, Kongresshäuser; (Groß)Kino's mit überörtlicher Bedeutung | C48: 1 Stpl. / 10 BP | D48: =1/10 -> 0.1 | E48: BP | G48: =IF(F48="","",F48*D48) -> 
A49: 6.2. | B49: Sonstige Versammlungsstätten, Kino's, Vortragssäle, religiöse Versammlungsstätten | C49: 1 Stpl. / 15 BP | D49: =1/15 -> 0.06666666667 | E49: BP | G49: =IF(F49="","",F49*D49) -> 
A50: 7. | B50: Ausbildungsstätten, Schulen und Kindergärten
A51: 7.1. | B51: Kindergärten | C51: 1 Stpl. / 2 Gruppenräume | D51: =1/2 -> 0.5 | E51: Gruppenräume | G51: =IF(F51="","",F51*D51) -> 
A52: 7.2. | B52: Volks-, Haupt- und Mittelschulen, generell Ausbildungsstätten für Personen unter 18 Jahren | C52: 1 Stpl. / 2 Klassen | D52: =1/2 -> 0.5 | E52: Klassen | G52: =IF(F52="","",F52*D52) -> 
A53: 7.3. | B53: generell Ausbildungsstätten für Personen über 18 Jahren (sonstige Einrichtungen wie Büros, Mensen, Cafe's etc. sind nicht pauschal enthalten) | C53: 1 Stpl. / 10 Auszubildende (Sitzplätze, Hörerpläte) (mind. 2 Stpl.) | D53: =1/10 -> 0.1 | E53: Auszubildende | G53: =IF(F53="","",IF(F53*D53<2,2,F53*D53)) -> 
A54: 8. | B54: Krankenanstalten
A55: 8.1. | B55: (Alten-)Wohnheime (pflegeartige Betreuung, gemeinsame Einrichtungen) | C55: 1 Stpl. / 10 Betten | D55: 0.1 | E55: Betten | G55: =IF(F55="","",F55*D55) -> 
A56: 9. | B56: Verschiedenes
A57: 10.1. | B57: Kleingartenanlagen | C57: 1 Stpl. / 2 Kleingärten | D57: 0.5 | E57: Kleingärten: | G57: =IF($F$57="","",$F$57*$D$57) -> 
A58: 9.1. | B58: Fitnesscenter | C58: 1 Stpl. / 2,5 Kleiderablagen | D58: =1/2.5 -> 0.4 | E58: Kleiderablagen | G58: =IF(F58="","",F58*D58) ->  | I58: Summe Nichtwohngebäude gerundet
A59: 9.2. | B59: Kleingartenanlagen | C59: 1 Stpl. / 4 Kleingärten | D59: =1/4 -> 0.25 | E59: Kleingärten | G59: =IF(F59="","",F59*D59) ->  | I59: =ROUND(SUM(G31,G33:G36,G38:G40,G42:G46,G48:G49,G51:G53,G55,G58:G59),0) -> 0
A60: Die Gesamtanzahl der erforderlichen Stellplätze beträgt: | G60: =SUM($G$6:$G$59) -> 0
A61: Barrierefreiestellplätze gem. §9 TBO (angemessene Anzahl gem. ÖNORM B 1600)* | G61: =IF(G60=SUM(G8:G11),0,IF((G60-SUM(G8:G11))>=5,ROUNDUP((G60-SUM(G8:G11))/20,0),0)) -> 0 | I61: =IF(F48="","","ACHTUNG:" & CHAR(10) & "separate Regeln für Veranstaltungsstätten") -> 
A62: Fläche für einspurige Kraftfahrzeuge gem. §12 TBO für Wohnanlagen in m² (angemessene Größe gemäß Statistik Kfz Bestand)** | G62: =IF(SUM(G13:G16)*0.16*1.5=0,0,MAX(SUM(G13:G16)*0.16*1.5,1.5)) -> 0
A63: Technische Bauvorschriften 9. Abschnitt Elektromobilität | C63: Ladepunkte | G63: =IF(I59>10,1,0) -> 0 | I63: TBV §37b Abs (5) Bei Nichtwohngebäude, bei denen die Anzahl der nachzuweisenden Abstellmöglichkeiten mehr als zwanzig beträgt, ist bis zum 1. Jänner 2025 mindestens ein Ladepunkt für Elektrofahrzeuge zu errichten. (Die Nachrüstung eines Ladepunktes ist erforderlich)
C64: Anzahl der Stellplätze mit Leitungsinfrastruktur | G64: =IF(I29>10,I29,0)+IF(I59>10,ROUNDUP(I59/5,0),0) -> 0
C66: 2) davon 10% Besucher
A67: Der ermittelte Stellplatzbedarf ist nach mathematischen Regeln zu runden!
A68: Legende:
A69: AF | B69: …Ausstellungsfläche | C69: *Barrierefreie Stellplätze Anforderung für Wohnanlagen und Gebäude die regelmäßig auch von Menschen mit einer Behinderung aufgesucht werden
A70: AP | B70: …Arbeitsplätze
A71: BF | B71: …Betriebsfläche
A72: BP | B72: …Besucherplatz | C72: **Berechnung Flächen einspurige Kfz: Statistik Austria Kfz Bestand 2019 Innsbruck Stadt Anteil einspuriger Fahrzeuge = 16% bezogen auf Pkws vorgeschriebene Anzahl Pkw Stellplätze *16% *1,5m²
A73: FBF | B73: …Freibadfläche
A74: FHF | B74: …Friedhofsfläche
A75: GF | B75: …Gastraumfläche
A76: GSP | B76: …Gesamtsitzplatzanzahl
A77: HF | B77: …Hallenfläche
A78: KF | B78: …Kundenfläche nach §8 (2) TROG 16
A79: LF | B79: …Lagerfläche im Gebäude
A80: NF | B80: …Nutzfläche nach ÖNORM B 1800
A81: SF | B81: …Sportfläche
A82: SP | B82: …Sitzplätze
A83: VF | B83: …Verkaufsfläche
A84: WE | B84: …Wohneinheit bzw. Wohnung
A85: WNF | B85: …Wohnnutzfläche je WE gemäß Stellplatzhöchstzahlenverordnung
A87: Auf eine nähere Definition der letzteren Begriffe wurde wegen ihrer Komplexität bewusst verzichtet. Im Zweifelsfall kontaktieren Sie das Referat Verkehrs- und Umweltmanagement.

Sheet peripheres Hauptsiedlungsgebiet
A1: peripheres Hauptsiedlungsgebiet
A2: Bauvorhaben: | C2: Adresse: | E2: Geschäftszahl:
C4: Stellplatzschlüssel (Stand 2018-02-01) | E4: Eingabedaten für Berechnung | G4: Erforderliche Anzahl an Stellplätzen
E5: Kennwert | F5: Anzahl
A6: 1. | B6: Gebäude mit Wohnnutzung
A7: 1.1. | B7: Neu, Zu-, oder Umbau von bis zu 6 WE
A8: 1.1.1. | B8: WE bis 60m² WNFL | C8: 1,00 Stpl. / WE2) | D8: 1 | E8: WE | G8: =IF(F8="","",IF(SUM($F$8:$F$11)>6,"",F8*D8)) ->  | I8: =IF(SUM(F8:F11)>6,"ACHTUNG:" & CHAR(10) & "Es wurden mehr als 6 WE eingegeben!" & CHAR(10) & "Eingabe bei Pkt. 1.2","") -> 
A9: 1.1.2. | B9: WE über 60 bis 80m² WNFL | C9: 1,50 Stpl. / WE2) | D9: 1.5 | E9: WE | G9: =IF(F9="","",IF(SUM($F$8:$F$11)>6,"",F9*D9)) -> 
A10: 1.1.3. | B10: WE über 80 bis 110m² WNFL | C10: 1,70 Stpl. / WE2) | D10: 1.7 | E10: WE | G10: =IF(F10="","",IF(SUM($F$8:$F$11)>6,"",F10*D10)) -> 
A11: 1.1.4. | B11: WE über 110m² WNFL | C11: 2,00 Stpl. / WE2) | D11: 2 | E11: WE | G11: =IF(F11="","",IF(SUM($F$8:$F$11)>6,"",F11*D11)) -> 
A12: 1.2. | B12: Wohnanlagen (Neu, Zu-, oder Umbau von mehr als 6 WE)
A13: 1.2.1. | B13: WE bis 60m² WNFL | C13: 85% von 1,00 Stpl. / WE2) | D13: =1 * 0.85 -> 0.85 | E13: WE | G13: =IF(F13="","",IF(SUM($F$13:$F$16)>6,F13*D13,"")) ->  | I13: =IF(AND(F13="",F14="",F15="",F16=""),"",IF(SUM(F13:F16)>6,"","ACHTUNG:" & CHAR(10) & "Kontrollieren Sie bitte ob es sich um eine Wohnanlage handelt!" & CHAR(10) & "Eingabe bei Pkt. 1.1")) -> 
A14: 1.2.2. | B14: WE über 60 bis 80m² WNFL | C14: 85% von 1,50 Stpl. / WE2) | D14: =1.5 * 0.85 -> 1.275 | E14: WE | G14: =IF(F14="","",IF(SUM($F$13:$F$16)>6,F14*D14,"")) -> 
A15: 1.2.3. | B15: WE über 80 bis 110m² WNFL | C15: 85% von 1,70 Stpl. / WE2) | D15: =1.7 * 0.85 -> 1.445 | E15: WE | G15: =IF(F15="","",IF(SUM($F$13:$F$16)>6,F15*D15,"")) -> 
A16: 1.2.4. | B16: WE über 110m² WNFL | C16: 85% von 2,00 Stpl. / WE2) | D16: =2 * 0.85 -> 1.7 | E16: WE | G16: =IF(F16="","",IF(SUM($F$13:$F$16)>6,F16*D16,"")) -> 
A17: 1.3. | B17: Betreutes Wohnen für SeniorInnen
A18: 1.3.1. | B18: bis (incl.) 5 WE
A19: 1.3.1.1. | B19: WE bis 60m² WNFL | C19: 75% von 1,00 Stpl. / WE2) | D19: =1*0.75 -> 0.75 | E19: WE | G19: =IF(F19="","",IF(SUM($F$19:$F$22)>5,"",F19*D19)) ->  | I19: =IF(SUM(F19:F22)>5,"ACHTUNG:" & CHAR(10) & "Es wurden mehr als 5 WE eingegeben!" & CHAR(10) & "Eingabe bei Pkt. 1.3.2","") -> 
A20: 1.3.1.2. | B20: WE über 60 bis 80m² WNFL | C20: 75% von 1,50 Stpl. / WE2) | D20: =1.5 * 0.75 -> 1.125 | E20: WE | G20: =IF(F20="","",IF(SUM($F$19:$F$22)>5,"",F20*D20)) -> 
A21: 1.3.1.3. | B21: WE über 80 bis 110m² WNFL | C21: 75% von 1,70 Stpl. / WE2) | D21: =1.7 * 0.75 -> 1.275 | E21: WE
A22: 1.3.1.4. | B22: WE über 110m² WNFL | C22: 75% von 2,00 Stpl. / WE2) | D22: =2*0.75 -> 1.5 | E22: WE
A23: 1.3.2. | B23: mehr als 5 WE
A24: 1.3.2.1. | B24: WE bis 60m² WNFL | C24: 65% von 1,00 Stpl. / WE2) | D24: =1 * 0.65 -> 0.65 | E24: WE | G24: =IF(F24="","",IF(SUM($F$24:$F$29)>5,F24*D24,"")) ->  | I24: =IF(AND(F24="",F25="",F26="",F27=""),"",IF(SUM(F24:F27)>5,"","ACHTUNG:" & CHAR(10) & "Kontrollieren Sie bitte ob es sich um eine Wohnanlage handelt!" & CHAR(10) & "Eingabe bei Pkt. 1.3.1")) -> 
A25: 1.3.2.2. | B25: WE über 60 bis 80m² WNFL | C25: 65% von 1,50 Stpl. / WE2) | D25: =1.5*0.65 -> 0.975 | E25: WE | G25: =IF(F25="","",IF(SUM($F$24:$F$29)>5,F25*D25,"")) -> 
A26: 1.3.2.3. | B26: WE über 80 bis 110m² WNFL | C26: 65% von 1,70 Stpl. / WE2) | D26: =1.7*0.65 -> 1.105 | E26: WE
A27: 1.3.2.4. | B27: WE über 110m² WNFL | C27: 65% von 2,00 Stpl. / WE2) | D27: =2*0.65 -> 1.3 | E27: WE
A28: 1.4. | B28: Heime für Kinder und Jugendliche bis 18 Jahren | C28: 1 Stpl. / 20 Betten (mind. 2 Stpl.) | D28: =1/20 -> 0.05 | E28: Betten | G28: =IF(F28="","",IF(F28*D28<2,2,F28*D28)) ->  | I28: Summe Wohngebäude gerundet
A29: 1.5. | B29: Heime für in Ausbildung befindliche oder berufstätige Personen über 18 Jahre | C29: 1 Stpl / 3 Betten (mind. 2 Stpl.) | D29: =1/3 -> 0.3333333333 | E29: Betten | G29: =IF(F29="","",IF(F29*D29<2,2,F29*D29)) ->  | I29: =ROUND(SUM(G8:G11,G13:G16,G19:G22,G24:G29),0) -> 0
A30: 2. | B30: Büro- Verwaltungs- und Praxisräume
A31: 2.1. | B31: öffentliche Einrichtungen (Ämter-, Arztpraxen, Schalterhallen o.ä.) und sonstige Büro- und Verwaltungsräume | C31: 1 Stpl. / 40m² NF (mind. 2 Stpl.) | D31: =1/40 -> 0.025 | E31: NF [m2] | G31: =IF(F31="","",IF(F31*D31<2,2,F31*D31)) -> 
A32: 3. | B32: Verkaufsstätten
A33: 3.1. | B33: Läden und Geschäfte (bis 300m²) | C33: 1 Stpl. / 20m² KF (mind. 2 Stpl.) | D33: =1/20 -> 0.05 | E33: KF [m2] | G33: =IF(F33="","",IF(F33*D33<2,2,F33*D33)) -> 
A34: 3.2. | B34: Super- und Verbrauchermärkte (>300m²) sowie Einkaufszentren Betriebstyp A | C34: 1 Stpl. / 15m² KF (mind. 2 Stpl.) | D34: =1/15 -> 0.06666666667 | E34: KF [m2] | G34: =IF(F34="","",IF(F34*D34<2,2,F34*D34)) -> 
A35: 3.3. | B35: Einkaufszentren Betriebstyp B (früher IV bis V) | C35: 1 Stpl. / 15m² KF (mind. 2 Stpl.) | D35: =1/15 -> 0.06666666667 | E35: KF [m2] | G35: =IF(F35="","",IF(F35*D35<2,2,F35*D35)) -> 
A36: 3.4. | B36: Ausstellungs- und Verkaufsflächen für große, flächenbeanspruchene Güter, sofern keine EKZ | C36: 1 Stpl. / 100m² AF bzw. KF | D36: =1/100 -> 0.01 | E36: AF bzw. KF [m2] | G36: =IF(F36="","",F36*D36) -> 
A37: 4. | B37: Gaststätten und Beherbergungsbetriebe
A38: 4.1. | B38: Gaststätten, Restaurants, Cafes, Bars | C38: 1 Stpl. / 8 Sitzplätze (mind. 2 Stpl.) | D38: =1/8 -> 0.125 | E38: Sitzplätze | G38: =IF(F38="","",IF(F38*D38<2,2,F38*D38)) -> 
A39: 4.2. | B39: Hotels, Pensionen, Beherbergungsbetriebe | C39: 1 Stpl. / 3 Betten (mind. 2 Stpl.) | D39: =1/3 -> 0.3333333333 | E39: Betten | G39: =IF(F39="","",IF(F39*D39<2,2,F39*D39)) -> 
A40: 4.3. | B40: Jugendherbergen | C40: 1 Stpl. / 10 Betten (mind. 2 Stpl.) | D40: =1/10 -> 0.1 | E40: Betten | G40: =IF(F40="","",IF(F40*D40<2,2,F40*D40)) -> 
A41: 5. | B41: Sonstige gewerbliche Nutzung
A42: 5.1. | B42: Erzeugungs- und Dienstleistungsbetriebe | C42: 1 Stpl. / 200m² NF + 1 Stpl. / 2 AP (mind. 2 Stpl.) | D42: =1/200 -> 0.005 | E42: NF [m2] | G42: =IF(F42="","",IF(F43="","",IF(F42*D42+F43*D43<2,2,F42*D42+F43*D43))) -> 
D43: =1/2 -> 0.5 | E43: AP
A44: 5.2. | B44: Lagergebäude und -flächen | C44: 1 Stpl. / 80m² LF | D44: 0.0125 | E44: LF [m2]: | G44: =IF($F$44="","",$F$44*$D$44) -> 
A45: 5.2. | B45: Lagergebäude und -flächen | C45: 1 Stpl. / 150m² LF | D45: =1/150 -> 0.006666666667 | E45: LF [m2] | G45: =IF(F45="","",F45*D45) -> 
A46: 5.3. | B46: Waschanlagen | C46: 2 Stpl. / Waschanlage | D46: 2 | E46: Waschanlagen | G46: =IF(F46="","",F46*D46) -> 
A47: 6. | B47: Versammlungsstätten
A48: 6.1. | B48: Theater, Konzert-, Kongresshäuser; (Groß)Kino's mit überörtlicher Bedeutung | C48: 1 Stpl. / 5 Besucherplätze | D48: =1/5 -> 0.2 | E48: BP | G48: =IF(F48="","",F48*D48) -> 
A49: 6.2. | B49: Sonstige Versammlungsstätten, Kino's, Vortragssäle, religiöse Versammlungsstätten | C49: 1 Stpl. / 10 Besucherplätze | D49: =1/10 -> 0.1 | E49: BP | G49: =IF(F49="","",F49*D49) -> 
A50: 7. | B50: Ausbildungsstätten, Schulen und Kindergärten
A51: 7.1. | B51: Kindergärten | C51: 1 Stpl. / Gruppenraum | D51: =1/1 -> 1 | E51: Gruppenräume | G51: =IF(F51="","",F51*D51) -> 
A52: 7.2. | B52: Volks-, Haupt- und Mittelschulen, generell Ausbildungsstätten für Personen unter 18 Jahren | C52: 1 Stpl. / Klasse | D52: =1/1 -> 1 | E52: Klassen | G52: =IF(F52="","",F52*D52) -> 
A53: 7.3. | B53: generell Ausbildungsstätten für Personen über 18 Jahren (sonstige Einrichtungen wie Büros, Mensen, Cafe's etc. sind nicht pauschal enthalten) | C53: 1 Stpl. / 10 Auszubildende (Sitzplätze, Hörerpläte) (mind. 2 Stpl.) | D53: =1/10 -> 0.1 | E53: Auszubildende | G53: =IF(F53="","",IF(F53*D53<2,2,F53*D53)) -> 
A54: 8. | B54: Krankenanstalten
A55: 8.1. | B55: (Alten-)Wohnheime (pflegeartige Betreuung, gemeinsame Einrichtungen) | C55: 1 Stpl. / 8 Betten | D55: =1/8 -> 0.125 | E55: Betten | G55: =IF(F55="","",F55*D55) -> 
A56: 9. | B56: Verschiedenes
A57: 10.1. | B57: Kleingartenanlagen | C57: 1 Stpl. / 2 Kleingärten | D57: 0.5 | E57: Kleingärten: | G57: =IF($F$57="","",$F$57*$D$57) -> 
A58: 9.1. | B58: Fitnesscenter | C58: 1 Stpl. / 2 Kleiderablagen | D58: =1/2 -> 0.5 | E58: Kleiderablagen | G58: =IF(F58="","",F58*D58) ->  | I58: Summe Nichtwohngebäude gerundet
A59: 9.2. | B59: Kleingartenanlagen | C59: 1 Stpl. / 2 Kleingärten | D59: =1/2 -> 0.5 | E59: Kleingärten | G59: =IF(F59="","",F59*D59) ->  | I59: =ROUND(SUM(G31,G33:G36,G38:G40,G42:G46,G48:G49,G51:G53,G55,G58:G59),0) -> 0
A60: Die Gesamtanzahl der erforderlichen Stellplätze beträgt: | G60: =SUM($G$6:$G$59) -> 0
A61: Barrierefreiestellplätze gem. §9 TBO (angemessene Anzahl gem. ÖNORM B 1600)* | G61: =IF(G60=SUM(G8:G11),0,IF((G60-SUM(G8:G11))>=5,ROUNDUP((G60-SUM(G8:G11))/20,0),0)) -> 0 | I61: =IF(F48="","","ACHTUNG:" & CHAR(10) & "separate Regeln für Veranstaltungsstätten") -> 
A62: Fläche für einspurige Kraftfahrzeuge gem. §12 TBO für Wohnanlagen in m² (angemessene Größe gemäß Statistik Kfz Bestand)** | G62: =IF(SUM(G13:G16)*0.16*1.5=0,0,MAX(SUM(G13:G16)*0.16*1.5,1.5)) -> 0
A63: Technische Bauvorschriften 9. Abschnitt Elektromobilität | C63: Ladepunkte | G63: =IF(I59>10,1,0) -> 0 | I63: TBV §37b Abs (5) Bei Nichtwohngebäude, bei denen die Anzahl der nachzuweisenden Abstellmöglichkeiten mehr als zwanzig beträgt, ist bis zum 1. Jänner 2025 mindestens ein Ladepunkt für Elektrofahrzeuge zu errichten. (Die Nachrüstung eines Ladepunktes ist erforderlich)
C64: Anzahl der Stellplätze mit Leitungsinfrastruktur | G64: =IF(I29>10,I29,0)+IF(I59>10,ROUNDUP(I59/5,0),0) -> 0
C66: 2) davon 10% Besucher
A67: Der ermittelte Stellplatzbedarf ist nach mathematischen Regeln zu runden!
A68: Legende:
A69: AF | B69: …Ausstellungsfläche | C69: *Barrierefreie Stellplätze Anforderung für Wohnanlagen und Gebäude die regelmäßig auch von Menschen mit einer Behinderung aufgesucht werden
A70: AP | B70: …Arbeitsplätze
A71: BF | B71: …Betriebsfläche
A72: BP | B72: …Besucherplatz | C72: **Berechnung Flächen einspurige Kfz: Statistik Austria Kfz Bestand 2019 Innsbruck Stadt Anteil einspuriger Fahrzeuge = 16% bezogen auf Pkws vorgeschriebene Anzahl Pkw Stellplätze *16% *1,5m²
A73: FBF | B73: …Freibadfläche
A74: FHF | B74: …Friedhofsfläche
A75: GF | B75: …Gastraumfläche
A76: GSP | B76: …Gesamtsitzplatzanzahl
A77: HF | B77: …Hallenfläche
A78: KF | B78: …Kundenfläche nach §8 (2) TROG 16
A79: LF | B79: …Lagerfläche im Gebäude
A80: NF | B80: …Nutzfläche nach ÖNORM B 1800
A81: SF | B81: …Sportfläche
A82: SP | B82: …Sitzplätze
A83: VF | B83: …Verkaufsfläche
A84: WE | B84: …Wohneinheit bzw. Wohnung
A85: WNF | B85: …Wohnnutzfläche je WE gemäß Stellplatzhöchstzahlenverordnung
A87: Auf eine nähere Definition der letzteren Begriffe wurde wegen ihrer Komplexität bewusst verzichtet. Im Zweifelsfall kontaktieren Sie das Referat Verkehrs- und Umweltmanagement.

Sheet übriges Siedlungsgebiet
A1: übriges Siedlungsgebiet
A2: Bauvorhaben: | C2: Adresse: | E2: Geschäftszahl:
C4: Stellplatzschlüssel (Stand 2018-02-01) | E4: Eingabedaten für Berechnung | G4: Erforderliche Anzahl an Stellplätzen
E5: Kennwert | F5: Anzahl
A6: 1. | B6: Gebäude mit Wohnnutzung
A7: 1.1. | B7: Neu, Zu-, oder Umbau von bis zu 6 WE
A8: 1.1.1. | B8: WE bis 60m² WNFL | C8: 1,20 Stpl. / WE2) | D8: 1.2 | E8: WE | G8: =IF(F8="","",IF(SUM($F$8:$F$11)>6,"",F8*D8)) ->  | I8: =IF(SUM(F8:F11)>6,"ACHTUNG:" & CHAR(10) & "Es wurden mehr als 6 WE eingegeben!" & CHAR(10) & "Eingabe bei Pkt. 1.2","") -> 
A9: 1.1.2. | B9: WE über 60 bis 80m² WNFL | C9: 1,70 Stpl. / WE2) | D9: 1.7 | E9: WE | G9: =IF(F9="","",IF(SUM($F$8:$F$11)>6,"",F9*D9)) -> 
A10: 1.1.3. | B10: WE über 80 bis 110m² WNFL | C10: 1,90 Stpl. / WE2) | D10: 1.9 | E10: WE | G10: =IF(F10="","",IF(SUM($F$8:$F$11)>6,"",F10*D10)) -> 
A11: 1.1.4. | B11: WE über 110m² WNFL | C11: 2,10 Stpl. / WE2) | D11: 2.1 | E11: WE | G11: =IF(F11="","",IF(SUM($F$8:$F$11)>6,"",F11*D11)) -> 
A12: 1.2. | B12: Wohnanlagen (Neu, Zu-, oder Umbau von mehr als 6 WE)
A13: 1.2.1. | B13: WE bis 60m² WNFL | C13: 85% von 1,20 Stpl. / WE2) | D13: =1.2 * 0.85 -> 1.02 | E13: WE | G13: =IF(F13="","",IF(SUM($F$13:$F$16)>6,F13*D13,"")) ->  | I13: =IF(AND(F13="",F14="",F15="",F16=""),"",IF(SUM(F13:F16)>6,"","ACHTUNG:" & CHAR(10) & "Kontrollieren Sie bitte ob es sich um eine Wohnanlage handelt!" & CHAR(10) & "Eingabe bei Pkt. 1.1")) -> 
A14: 1.2.2. | B14: WE über 60 bis 80m² WNFL | C14: 85% von 1,70 Stpl. / WE2) | D14: =1.7 * 0.85 -> 1.445 | E14: WE | G14: =IF(F14="","",IF(SUM($F$13:$F$16)>6,F14*D14,"")) -> 
A15: 1.2.3. | B15: WE über 80 bis 110m² WNFL | C15: 85% von 1,90 Stpl. / WE2) | D15: =1.9 * 0.85 -> 1.615 | E15: WE | G15: =IF(F15="","",IF(SUM($F$13:$F$16)>6,F15*D15,"")) -> 
A16: 1.2.4. | B16: WE über 110m² WNFL | C16: 85% von 2,10 Stpl. / WE2) | D16: =2.1 * 0.85 -> 1.785 | E16: WE | G16: =IF(F16="","",IF(SUM($F$13:$F$16)>6,F16*D16,"")) -> 
A17: 1.3. | B17: Betreutes Wohnen für SeniorInnen
A18: 1.3.1. | B18: bis (incl.) 5 WE
A19: 1.3.1.1. | B19: WE bis 60m² WNFL | C19: 75% von 1,20 Stpl. / WE2) | D19: =1.2*0.75 -> 0.9 | E19: WE | G19: =IF(F19="","",IF(SUM($F$19:$F$22)>5,"",F19*D19)) ->  | I19: =IF(SUM(F19:F22)>5,"ACHTUNG:" & CHAR(10) & "Es wurden mehr als 5 WE eingegeben!" & CHAR(10) & "Eingabe bei Pkt. 1.3.2","") -> 
A20: 1.3.1.2. | B20: WE über 60 bis 80m² WNFL | C20: 75% von 1,70 Stpl. / WE2) | D20: =1.7 * 0.75 -> 1.275 | E20: WE | G20: =IF(F20="","",IF(SUM($F$19:$F$22)>5,"",F20*D20)) -> 
A21: 1.3.1.3. | B21: WE über 80 bis 110m² WNFL | C21: 75% von 1,90 Stpl. / WE2) | D21: =1.9 * 0.75 -> 1.425 | E21: WE
A22: 1.3.1.4. | B22: WE über 110m² WNFL | C22: 75% von 2,10 Stpl. / WE2) | D22: =2.1*0.75 -> 1.575 | E22: WE
A23: 1.3.2. | B23: mehr als 5 WE
A24: 1.3.2.1. | B24: WE bis 60m² WNFL | C24: 65% von 1,20 Stpl. / WE2) | D24: =1.2 * 0.65 -> 0.78 | E24: WE | G24: =IF(F24="","",IF(SUM($F$24:$F$29)>5,F24*D24,"")) ->  | I24: =IF(AND(F24="",F25="",F26="",F27=""),"",IF(SUM(F24:F27)>5,"","ACHTUNG:" & CHAR(10) & "Kontrollieren Sie bitte ob es sich um eine Wohnanlage handelt!" & CHAR(10) & "Eingabe bei Pkt. 1.3.1")) -> 
A25: 1.3.2.2. | B25: WE über 60 bis 80m² WNFL | C25: 65% von 1,70 Stpl. / WE2) | D25: =1.7*0.65 -> 1.105 | E25: WE | G25: =IF(F25="","",IF(SUM($F$24:$F$29)>5,F25*D25,"")) -> 
A26: 1.3.2.3. | B26: WE über 80 bis 110m² WNFL | C26: 65% von 1,90 Stpl. / WE2) | D26: =1.9*0.65 -> 1.235 | E26: WE
A27: 1.3.2.4. | B27: WE über 110m² WNFL | C27: 65% von 2,10 Stpl. / WE2) | D27: =2.1*0.65 -> 1.365 | E27: WE
A28: 1.4. | B28: Heime für Kinder und Jugendliche bis 18 Jahren | C28: 1 Stpl. / 20 Betten (mind. 2 Stpl.) | D28: =1/20 -> 0.05 | E28: Betten | G28: =IF(F28="","",IF(F28*D28<2,2,F28*D28)) ->  | I28: Summe Wohngebäude gerundet
A29: 1.5. | B29: Heime für in Ausbildung befindliche oder berufstätige Personen über 18 Jahre | C29: 1 Stpl / 3 Betten (mind. 2 Stpl.) | D29: =1/3 -> 0.3333333333 | E29: Betten | G29: =IF(F29="","",IF(F29*D29<2,2,F29*D29)) ->  | I29: =ROUND(SUM(G8:G11,G13:G16,G19:G22,G24:G29),0) -> 0
A30: 2. | B30: Büro- Verwaltungs- und Praxisräume
A31: 2.1. | B31: öffentliche Einrichtungen (Ämter-, Arztpraxen, Schalterhallen o.ä.) und sonstige Büro- und Verwaltungsräume | C31: 1 Stpl. / 40m² NF (mind. 2 Stpl.) | D31: =1/40 -> 0.025 | E31: NF [m2] | G31: =IF(F31="","",IF(F31*D31<2,2,F31*D31)) -> 
A32: 3. | B32: Verkaufsstätten
A33: 3.1. | B33: Läden und Geschäfte (bis 300m²) | C33: 1 Stpl. / 20m² KF (mind. 2 Stpl.) | D33: =1/20 -> 0.05 | E33: KF [m2] | G33: =IF(F33="","",IF(F33*D33<2,2,F33*D33)) -> 
A34: 3.2. | B34: Super- und Verbrauchermärkte (>300m²) sowie Einkaufszentren Betriebstyp A | C34: 1 Stpl. / 15m² KF (mind. 2 Stpl.) | D34: =1/15 -> 0.06666666667 | E34: KF [m2] | G34: =IF(F34="","",IF(F34*D34<2,2,F34*D34)) -> 
A35: 3.3. | B35: Einkaufszentren Betriebstyp B (früher IV bis V) | C35: 1 Stpl. / 15m² KF (mind. 2 Stpl.) | D35: =1/15 -> 0.06666666667 | E35: KF [m2] | G35: =IF(F35="","",IF(F35*D35<2,2,F35*D35)) -> 
A36: 3.4. | B36: Ausstellungs- und Verkaufsflächen für große, flächenbeanspruchene Güter, sofern keine EKZ | C36: 1 Stpl. / 100m² AF bzw. KF | D36: =1/100 -> 0.01 | E36: AF bzw. KF [m2] | G36: =IF(F36="","",F36*D36) -> 
A37: 4. | B37: Gaststätten und Beherbergungsbetriebe
A38: 4.1. | B38: Gaststätten, Restaurants, Cafes, Bars | C38: 1 Stpl. / 8 Sitzplätze (mind. 2 Stpl.) | D38: =1/8 -> 0.125 | E38: Sitzplätze | G38: =IF(F38="","",IF(F38*D38<2,2,F38*D38)) -> 
A39: 4.2. | B39: Hotels, Pensionen, Beherbergungsbetriebe | C39: 1 Stpl. / 3 Betten (mind. 2 Stpl.) | D39: =1/3 -> 0.3333333333 | E39: Betten | G39: =IF(F39="","",IF(F39*D39<2,2,F39*D39)) -> 
A40: 4.3. | B40: Jugendherbergen | C40: 1 Stpl. / 10 Betten (mind. 2 Stpl.) | D40: =1/10 -> 0.1 | E40: Betten | G40: =IF(F40="","",IF(F40*D40<2,2,F40*D40)) -> 
A41: 5. | B41: Sonstige gewerbliche Nutzung
A42: 5.1. | B42: Erzeugungs- und Dienstleistungsbetriebe | C42: 1 Stpl. / 200m² NF + 1 Stpl. / 2 AP (mind. 2 Stpl.) | D42: =1/200 -> 0.005 | E42: NF [m2] | G42: =IF(F42="","",IF(F43="","",IF(F42*D42+F43*D43<2,2,F42*D42+F43*D43))) -> 
D43: =1/2 -> 0.5 | E43: AP
A44: 5.2. | B44: Lagergebäude und -flächen | C44: 1 Stpl. / 80m² LF | D44: 0.0125 | E44: LF [m2]: | G44: =IF($F$44="","",$F$44*$D$44) -> 
A45: 5.2. | B45: Lagergebäude und -flächen | C45: 1 Stpl. / 150m² LF | D45: =1/150 -> 0.006666666667 | E45: LF [m2] | G45: =IF(F45="","",F45*D45) -> 
A46: 5.3. | B46: Waschanlagen | C46: 2 Stpl. / Waschanlage | D46: 2 | E46: Waschanlagen | G46: =IF(F46="","",F46*D46) -> 
A47: 6. | B47: Versammlungsstätten
A48: 6.1. | B48: Theater, Konzert-, Kongresshäuser; (Groß)Kino's mit überörtlicher Bedeutung | C48: 1 Stpl. / 5 Besucherplätze | D48: =1/5 -> 0.2 | E48: BP | G48: =IF(F48="","",F48*D48) -> 
A49: 6.2. | B49: Sonstige Versammlungsstätten, Kino's, Vortragssäle, religiöse Versammlungsstätten | C49: 1 Stpl. / 10 Besucherplätze | D49: =1/10 -> 0.1 | E49: BP | G49: =IF(F49="","",F49*D49) -> 
A50: 7. | B50: Ausbildungsstätten, Schulen und Kindergärten
A51: 7.1. | B51: Kindergärten | C51: 1 Stpl. / Gruppenraum | D51: =1/1 -> 1 | E51: Gruppenräume | G51: =IF(F51="","",F51*D51) -> 
A52: 7.2. | B52: Volks-, Haupt- und Mittelschulen, generell Ausbildungsstätten für Personen unter 18 Jahren | C52: 1 Stpl. / Klasse | D52: =1/1 -> 1 | E52: Klassen | G52: =IF(F52="","",F52*D52) -> 
A53: 7.3. | B53: generell Ausbildungsstätten für Personen über 18 Jahren (sonstige Einrichtungen wie Büros, Mensen, Cafe's etc. sind nicht pauschal enthalten) | C53: 1 Stpl. / 10 Auszubildende (Sitzplätze, Hörerpläte) (mind. 2 Stpl.) | D53: =1/10 -> 0.1 | E53: Auszubildende | G53: =IF(F53="","",IF(F53*D53<2,2,F53*D53)) -> 
A54: 8. | B54: Krankenanstalten
A55: 8.1. | B55: (Alten-)Wohnheime (pflegeartige Betreuung, gemeinsame Einrichtungen) | C55: 1 Stpl. / 8 Betten | D55: =1/8 -> 0.125 | E55: Betten | G55: =IF(F55="","",F55*D55) -> 
A56: 9. | B56: Verschiedenes
A57: 10.1. | B57: Kleingartenanlagen | C57: 1 Stpl. / 2 Kleingärten | D57: 0.5 | E57: Kleingärten: | G57: =IF($F$57="","",$F$57*$D$57) -> 
A58: 9.1. | B58: Fitnesscenter | C58: 1 Stpl. / 2 Kleiderablagen | D58: =1/2 -> 0.5 | E58: Kleiderablagen | G58: =IF(F58="","",F58*D58) ->  | I58: Summe Nichtwohngebäude gerundet
A59: 9.2. | B59: Kleingartenanlagen | C59: 1 Stpl. / 2 Kleingärten | D59: =1/2 -> 0.5 | E59: Kleingärten | G59: =IF(F59="","",F59*D59) ->  | I59: =ROUND(SUM(G31,G33:G36,G38:G40,G42:G46,G48:G49,G51:G53,G55,G58:G59),0) -> 0
A60: Die Gesamtanzahl der erforderlichen Stellplätze beträgt: | G60: =SUM($G$6:$G$59) -> 0
A61: Barrierefreiestellplätze gem. §9 TBO (angemessene Anzahl gem. ÖNORM B 1600)* | G61: =IF(G60=SUM(G8:G11),0,IF((G60-SUM(G8:G11))>=5,ROUNDUP((G60-SUM(G8:G11))/20,0),0)) -> 0 | I61: =IF(F48="","","ACHTUNG:" & CHAR(10) & "separate Regeln für Veranstaltungsstätten") -> 
A62: Fläche für einspurige Kraftfahrzeuge gem. §12 TBO für Wohnanlagen in m² (angemessene Größe gemäß Statistik Kfz Bestand)** | G62: =IF(SUM(G13:G16)*0.16*1.5=0,0,MAX(SUM(G13:G16)*0.16*1.5,1.5)) -> 0
A63: Technische Bauvorschriften 9. Abschnitt Elektromobilität | C63: Ladepunkte | G63: =IF(I59>10,1,0) -> 0 | I63: TBV §37b Abs (5) Bei Nichtwohngebäude, bei denen die Anzahl der nachzuweisenden Abstellmöglichkeiten mehr als zwanzig beträgt, ist bis zum 1. Jänner 2025 mindestens ein Ladepunkt für Elektrofahrzeuge zu errichten. (Die Nachrüstung eines Ladepunktes ist erforderlich)
C64: Anzahl der Stellplätze mit Leitungsinfrastruktur | G64: =IF(I29>10,I29,0)+IF(I59>10,ROUNDUP(I59/5,0),0) -> 0
C66: 2) davon 10% Besucher
A67: Der ermittelte Stellplatzbedarf ist nach mathematischen Regeln zu runden!
A68: Legende:
A69: AF | B69: …Ausstellungsfläche | C69: *Barrierefreie Stellplätze Anforderung für Wohnanlagen und Gebäude die regelmäßig auch von Menschen mit einer Behinderung aufgesucht werden
A70: AP | B70: …Arbeitsplätze
A71: BF | B71: …Betriebsfläche
A72: BP | B72: …Besucherplatz | C72: *Berechnung Flächen einspurige Kfz: Statistik Austria Kfz Bestand 2019 Innsbruck Stadt Anteil einspuriger Fahrzeuge = 16% bezogen auf Pkws vorgeschriebene Anzahl Pkw Stellplätze *16% *1,5m²
A73: FBF | B73: …Freibadfläche
A74: FHF | B74: …Friedhofsfläche
A75: GF | B75: …Gastraumfläche
A76: GSP | B76: …Gesamtsitzplatzanzahl
A77: HF | B77: …Hallenfläche
A78: KF | B78: …Kundenfläche nach §8 (2) TROG 16
A79: LF | B79: …Lagerfläche im Gebäude
A80: NF | B80: …Nutzfläche nach ÖNORM B 1800
A81: SF | B81: …Sportfläche
A82: SP | B82: …Sitzplätze
A83: VF | B83: …Verkaufsfläche
A84: WE | B84: …Wohneinheit bzw. Wohnung
A85: WNF | B85: …Wohnnutzfläche je WE gemäß Stellplatzhöchstzahlenverordnung
A87: Auf eine nähere Definition der letzteren Begriffe wurde wegen ihrer Komplexität bewusst verzichtet. Im Zweifelsfall kontaktieren Sie das Referat Verkehrs- und Umweltmanagement.
